[Event "Early-Titled-Tuesday-Blitz-January-16-2024"]
[Site "Chess.com"]
[Date "2024.01.16"]
[Round "11"]
[White "KNVB"]
[Black "only_strong_moves"]
[Result "1-0"]
[WhiteElo "2699"]
[BlackElo "2548"]
[TimeControl "180+1"]
[EndTime "10:08:25 PST"]
[Termination "KNVB won by resignation"]

1. d4 {[%clk 0:03:00.9]} 1... Nf6 {[%clk 0:02:59.1]} 2. Bf4 {[%clk 0:02:54.9]}
2... e6 {[%clk 0:02:57.3]} 3. e3 {[%clk 0:02:55.3]} 3... c5 {[%clk 0:02:57.8]}
4. c3 {[%clk 0:02:55.3]} 4... Nc6 {[%clk 0:02:58.4]} 5. Nf3 {[%clk 0:02:55.4]}
5... d5 {[%clk 0:02:59]} 6. Nbd2 {[%clk 0:02:55.3]} 6... Nh5 {[%clk 0:02:59.6]}
7. Be5 {[%clk 0:02:55.3]} 7... f6 {[%clk 0:02:59.7]} 8. Bg3 {[%clk 0:02:55.8]}
8... g6 {[%clk 0:02:56.4]} 9. Bd3 {[%clk 0:02:55.2]} 9... cxd4 {[%clk
0:02:55.5]} 10. exd4 {[%clk 0:02:53.5]} 10... Bd6 {[%clk 0:02:55.4]} 11. O-O
{[%clk 0:02:26.4]} 11... Nf4 {[%clk 0:02:54.1]} 12. Bc2 {[%clk 0:02:11.9]} 12...
O-O {[%clk 0:02:53.5]} 13. c4 {[%clk 0:02:09.8]} 13... b6 {[%clk 0:02:50]} 14.
cxd5 {[%clk 0:01:42]} 14... exd5 {[%clk 0:02:48.2]} 15. Bb3 {[%clk 0:01:36.1]}
15... Kg7 {[%clk 0:02:47.3]} 16. Re1 {[%clk 0:01:23.8]} 16... Na5 {[%clk
0:02:41.6]} 17. Bc2 {[%clk 0:00:44.5]} 17... Ba6 {[%clk 0:02:24.3]} 18. Nb1
{[%clk 0:00:37.2]} 18... Re8 {[%clk 0:02:17.9]} 19. Nc3 {[%clk 0:00:29.9]} 19...
Rxe1+ {[%clk 0:02:03.5]} 20. Qxe1 {[%clk 0:00:30.8]} 20... Nc4 {[%clk
0:02:03.7]} 21. Bxf4 {[%clk 0:00:05.1]} 21... Bxf4 {[%clk 0:02:03.3]} 22. Nxd5
{[%clk 0:00:05.4]} 22... Qxd5 {[%clk 0:01:59.8]} 23. Be4 {[%clk 0:00:05.8]}
23... Qd8 {[%clk 0:02:00]} 24. Bxa8 {[%clk 0:00:06.2]} 24... Qxa8 {[%clk
0:02:00.9]} 25. Qe7+ {[%clk 0:00:06.6]} 25... Kg8 {[%clk 0:02:00.6]} 26. Qe6+
{[%clk 0:00:03.4]} 26... Kg7 {[%clk 0:01:59.5]} 27. Qe7+ {[%clk 0:00:03.4]}
27... Kg8 {[%clk 0:02:00.2]} 28. Qxf6 {[%clk 0:00:03.5]} 28... Bh6 {[%clk
0:01:47.1]} 29. Qe6+ {[%clk 0:00:02.4]} 29... Kh8 {[%clk 0:01:45.5]} 30. Re1
{[%clk 0:00:02.8]} 30... Bb7 {[%clk 0:01:33.2]} 31. Qf7 {[%clk 0:00:02.2]} 31...
Bc6 {[%clk 0:01:23.7]} 32. Qxc4 {[%clk 0:00:02]} 32... Bxf3 {[%clk 0:01:18.7]}
33. gxf3 {[%clk 0:00:02.9]} 33... Bd2 {[%clk 0:01:19.1]} 34. Re4 {[%clk
0:00:02.3]} 34... Qf8 {[%clk 0:01:18.7]} 35. Qe6 {[%clk 0:00:02.3]} 35... Qxf3
{[%clk 0:01:18.2]} 36. Qe8+ {[%clk 0:00:02]} 36... Kg7 {[%clk 0:01:18.8]} 37.
Qe7+ {[%clk 0:00:02.5]} 37... Kh6 {[%clk 0:01:19.2]} 38. Rh4+ {[%clk 0:00:02.4]}
38... Qh5 {[%clk 0:01:18.3]} 39. Rxh5+ {[%clk 0:00:02.8]} 39... Kxh5 {[%clk
0:01:19.2]} 40. Qe6 {[%clk 0:00:03.4]} 40... Bf4 {[%clk 0:01:18.4]} 41. Kg2
{[%clk 0:00:04.3]} 41... Bg5 {[%clk 0:01:19.2]} 42. d5 {[%clk 0:00:05.1]} 42...
Bf4 {[%clk 0:01:20.1]} 43. d6 {[%clk 0:00:06]} 43... Bg5 {[%clk 0:01:21]} 44. d7
{[%clk 0:00:06.9]} 44... Bd8 {[%clk 0:01:21.6]} 45. Qe8 {[%clk 0:00:07.8]} 45...
Bg5 {[%clk 0:01:22.3]} 46. d8=Q {[%clk 0:00:08.7]} 46... Bxd8 {[%clk 0:01:22.5]}
47. Qxd8 {[%clk 0:00:09.6]} 1-0

[Event "Early-Titled-Tuesday-Blitz-January-16-2024"]
[Site "Chess.com"]
[Date "2024.01.16"]
[Round "11"]
[White "AndresDelgado77"]
[Black "toninhojit"]
[Result "0-1"]
[WhiteElo "2374"]
[BlackElo "2398"]
[TimeControl "180+1"]
[EndTime "10:08:33 PST"]
[Termination "toninhojit won by resignation"]

1. e4 {[%clk 0:03:00]} 1... e5 {[%clk 0:02:59.6]} 2. Nc3 {[%clk 0:02:59.7]} 2...
Nc6 {[%clk 0:02:58.3]} 3. f4 {[%clk 0:02:58.2]} 3... exf4 {[%clk 0:02:56.5]} 4.
d4 {[%clk 0:02:56.4]} 4... g5 {[%clk 0:02:50.9]} 5. h4 {[%clk 0:02:55.6]} 5...
Bg7 {[%clk 0:02:46.9]} 6. d5 {[%clk 0:02:48.5]} 6... Ne5 {[%clk 0:02:43.8]} 7.
hxg5 {[%clk 0:02:32.5]} 7... Qxg5 {[%clk 0:02:44.7]} 8. Nce2 {[%clk 0:02:32.5]}
8... d6 {[%clk 0:02:29.7]} 9. Bxf4 {[%clk 0:02:24.7]} 9... Qe7 {[%clk
0:02:28.7]} 10. Nd4 {[%clk 0:01:57.6]} 10... Ng6 {[%clk 0:02:28.7]} 11. Bb5+
{[%clk 0:01:57.2]} 11... Kf8 {[%clk 0:02:29.2]} 12. Nde2 {[%clk 0:00:34.5]}
12... Nxf4 {[%clk 0:02:07.8]} 13. Nxf4 {[%clk 0:00:32.9]} 13... Qxe4+ {[%clk
0:02:07.8]} 14. Nge2 {[%clk 0:00:33.2]} 14... Bg4 {[%clk 0:02:00.4]} 15. O-O
{[%clk 0:00:21.6]} 15... Nh6 {[%clk 0:01:38.4]} 16. Bd3 {[%clk 0:00:20.8]} 16...
Qe3+ {[%clk 0:01:37.7]} 17. Kh1 {[%clk 0:00:17.5]} 17... Re8 {[%clk 0:01:33]}
18. Re1 {[%clk 0:00:15.8]} 18... Qf2 {[%clk 0:01:27]} 19. Rf1 {[%clk 0:00:14.7]}
19... Qh4+ {[%clk 0:01:26.7]} 20. Kg1 {[%clk 0:00:14.6]} 20... Bd4+ {[%clk
0:01:25.3]} 21. Nxd4 {[%clk 0:00:14.4]} 21... Bxd1 {[%clk 0:01:25.4]} 22. Nfe6+
{[%clk 0:00:13.5]} 22... Kg8 {[%clk 0:01:20.2]} 23. Rf4 {[%clk 0:00:13.6]} 23...
Bg4 {[%clk 0:01:05.3]} 24. Be2 {[%clk 0:00:11.2]} 24... fxe6 {[%clk 0:01:01.9]}
25. Bxg4 {[%clk 0:00:11.5]} 25... Nxg4 {[%clk 0:01:00.9]} 26. Nxe6 {[%clk
0:00:10.5]} 26... Qh2+ {[%clk 0:01:00.2]} 27. Kf1 {[%clk 0:00:10.7]} 27... Qh1+
{[%clk 0:00:56.3]} 28. Ke2 {[%clk 0:00:10.1]} 28... Rxe6+ {[%clk 0:00:55.8]} 29.
dxe6 {[%clk 0:00:09.3]} 29... Qxa1 {[%clk 0:00:53.6]} 30. Rxg4+ {[%clk
0:00:09.1]} 30... Kf8 {[%clk 0:00:54.2]} 31. Rf4+ {[%clk 0:00:06.8]} 31... Ke7
{[%clk 0:00:54.8]} 0-1

[Event "Early-Titled-Tuesday-Blitz-January-16-2024"]
[Site "Chess.com"]
[Date "2024.01.16"]
[Round "11"]
[White "Iball95"]
[Black "Iskusnyh"]
[Result "1-0"]
[WhiteElo "2763"]
[BlackElo "2645"]
[TimeControl "180+1"]
[EndTime "10:08:34 PST"]
[Termination "Iball95 won on time"]

1. e4 {[%clk 0:03:00.9]} 1... e6 {[%clk 0:03:00]} 2. d4 {[%clk 0:03:00.9]} 2...
d5 {[%clk 0:03:00.5]} 3. Nc3 {[%clk 0:03:01.5]} 3... Nf6 {[%clk 0:03:00.1]} 4.
Bd3 {[%clk 0:03:01.3]} 4... c5 {[%clk 0:02:09.8]} 5. Nf3 {[%clk 0:02:58]} 5...
Nc6 {[%clk 0:02:08.7]} 6. exd5 {[%clk 0:02:56.2]} 6... exd5 {[%clk 0:02:08.4]}
7. O-O {[%clk 0:02:51]} 7... c4 {[%clk 0:02:04]} 8. Bxc4 {[%clk 0:02:50.6]} 8...
dxc4 {[%clk 0:02:02.8]} 9. d5 {[%clk 0:02:48.4]} 9... Be7 {[%clk 0:01:47.3]} 10.
dxc6 {[%clk 0:02:44.6]} 10... bxc6 {[%clk 0:01:47.3]} 11. Ne5 {[%clk 0:02:36.3]}
11... Qxd1 {[%clk 0:01:42.8]} 12. Rxd1 {[%clk 0:02:37.2]} 12... Bb7 {[%clk
0:01:40.7]} 13. Nxc4 {[%clk 0:02:36]} 13... O-O {[%clk 0:01:40.6]} 14. Bg5
{[%clk 0:02:33.1]} 14... h6 {[%clk 0:01:37.5]} 15. Bh4 {[%clk 0:02:33.2]} 15...
c5 {[%clk 0:01:33]} 16. Nd6 {[%clk 0:02:27.7]} 16... Bc6 {[%clk 0:01:26.9]} 17.
Nf5 {[%clk 0:02:26.6]} 17... Bd8 {[%clk 0:01:26.9]} 18. Rxd8 {[%clk 0:02:15.8]}
18... Rfxd8 {[%clk 0:01:21.5]} 19. Ne7+ {[%clk 0:02:16]} 19... Kf8 {[%clk
0:01:21]} 20. Nxc6 {[%clk 0:02:16.6]} 20... Rd2 {[%clk 0:01:21.3]} 21. Rc1
{[%clk 0:02:08.8]} 21... Re8 {[%clk 0:01:19]} 22. Kf1 {[%clk 0:01:52.2]} 22...
a6 {[%clk 0:01:10]} 23. Bxf6 {[%clk 0:01:51.8]} 23... gxf6 {[%clk 0:01:09.6]}
24. Na5 {[%clk 0:01:52.4]} 24... Rd4 {[%clk 0:01:06.6]} 25. Nb3 {[%clk
0:01:50.3]} 25... Rc4 {[%clk 0:01:05.1]} 26. Rd1 {[%clk 0:01:50.6]} 26... Rc8
{[%clk 0:01:04.3]} 27. Rd6 {[%clk 0:01:49.2]} 27... Rf4 {[%clk 0:00:56.7]} 28.
Rxa6 {[%clk 0:01:45.6]} 28... c4 {[%clk 0:00:57]} 29. Nd2 {[%clk 0:01:46.1]}
29... Rd8 {[%clk 0:00:57]} 30. Nf3 {[%clk 0:01:45.7]} 30... Rf5 {[%clk
0:00:52.9]} 31. Rc6 {[%clk 0:01:41.1]} 31... Rb8 {[%clk 0:00:52.6]} 32. Nd1
{[%clk 0:01:33.1]} 32... Rd5 {[%clk 0:00:48.8]} 33. Ne3 {[%clk 0:01:32.7]} 33...
Ra5 {[%clk 0:00:47.4]} 34. b3 {[%clk 0:01:24.4]} 34... Rxa2 {[%clk 0:00:45.4]}
35. Rxc4 {[%clk 0:01:23.4]} 35... Rb6 {[%clk 0:00:42.9]} 36. g4 {[%clk
0:01:21.5]} 36... Rb2 {[%clk 0:00:35.7]} 37. h4 {[%clk 0:01:20.2]} 37... Ra6
{[%clk 0:00:35.6]} 38. h5 {[%clk 0:01:19.8]} 38... Rb1+ {[%clk 0:00:31.6]} 39.
Kg2 {[%clk 0:01:19.5]} 39... Raa1 {[%clk 0:00:30.3]} 40. Nf5 {[%clk 0:01:19.3]}
40... Ke8 {[%clk 0:00:26.3]} 41. Nxh6 {[%clk 0:01:19.4]} 1-0

[Event "Early-Titled-Tuesday-Blitz-January-16-2024"]
[Site "Chess.com"]
[Date "2024.01.16"]
[Round "11"]
[White "DenLaz"]
[Black "Tejas_Rama"]
[Result "1-0"]
[WhiteElo "3043"]
[BlackElo "2596"]
[TimeControl "180+1"]
[EndTime "10:08:38 PST"]
[Termination "DenLaz won by resignation"]

1. d4 {[%clk 0:03:00.9]} 1... Nf6 {[%clk 0:02:56.5]} 2. Nf3 {[%clk 0:03:01.4]}
2... d5 {[%clk 0:02:54.2]} 3. Bg5 {[%clk 0:03:01.8]} 3... c5 {[%clk 0:02:52.2]}
4. e3 {[%clk 0:03:00.9]} 4... cxd4 {[%clk 0:02:46.3]} 5. exd4 {[%clk 0:03:00.6]}
5... Nc6 {[%clk 0:02:44]} 6. c3 {[%clk 0:02:59.8]} 6... Bf5 {[%clk 0:02:42]} 7.
Nbd2 {[%clk 0:02:59.3]} 7... e6 {[%clk 0:02:39.6]} 8. Be2 {[%clk 0:02:59.5]}
8... Be7 {[%clk 0:02:35.5]} 9. O-O {[%clk 0:02:59.9]} 9... O-O {[%clk
0:02:35.4]} 10. Re1 {[%clk 0:03:00.4]} 10... Qc7 {[%clk 0:02:33.9]} 11. Nf1
{[%clk 0:03:00.5]} 11... Ne4 {[%clk 0:02:31.3]} 12. Bxe7 {[%clk 0:03:00.3]}
12... Qxe7 {[%clk 0:02:29]} 13. Bd3 {[%clk 0:03:00.9]} 13... Rab8 {[%clk
0:02:22.5]} 14. Ng3 {[%clk 0:02:59.2]} 14... Nxg3 {[%clk 0:02:21.6]} 15. hxg3
{[%clk 0:03:00.1]} 15... Bxd3 {[%clk 0:02:17.2]} 16. Qxd3 {[%clk 0:03:01]} 16...
b5 {[%clk 0:02:16.6]} 17. b4 {[%clk 0:03:00.9]} 17... a5 {[%clk 0:01:49.4]} 18.
a3 {[%clk 0:03:00.8]} 18... Rfc8 {[%clk 0:01:49.2]} 19. g4 {[%clk 0:03:00.5]}
19... Qd8 {[%clk 0:01:39.2]} 20. g3 {[%clk 0:03:00.2]} 20... Ne7 {[%clk
0:01:31.3]} 21. Kg2 {[%clk 0:02:59.7]} 21... Qc7 {[%clk 0:01:23.4]} 22. Rh1
{[%clk 0:02:59.5]} 22... Ng6 {[%clk 0:01:22.7]} 23. Rac1 {[%clk 0:02:59.2]}
23... Qf4 {[%clk 0:00:53.4]} 24. g5 {[%clk 0:02:21.3]} 24... axb4 {[%clk
0:00:45.8]} 25. axb4 {[%clk 0:02:20.4]} 25... Qc7 {[%clk 0:00:37.5]} 26. Rh5
{[%clk 0:02:05.7]} 26... Qc6 {[%clk 0:00:15]} 27. Qe3 {[%clk 0:01:49.7]} 27...
Ra8 {[%clk 0:00:12.5]} 28. Ne5 {[%clk 0:01:47.6]} 28... Qc7 {[%clk 0:00:08.2]}
29. Nxg6 {[%clk 0:01:35.2]} 29... hxg6 {[%clk 0:00:09.1]} 30. Rh4 {[%clk
0:01:35.3]} 30... Ra3 {[%clk 0:00:08.9]} 31. Rch1 {[%clk 0:01:16]} 31... Kf8
{[%clk 0:00:09.1]} 32. Qe2 {[%clk 0:01:16.4]} 32... Qc4 {[%clk 0:00:03]} 33. Qe5
{[%clk 0:01:15.7]} 33... Qc7 {[%clk 0:00:01.8]} 34. Rh8+ {[%clk 0:01:12.6]}
34... Ke7 {[%clk 0:00:02.2]} 35. Qxg7 {[%clk 0:01:13.2]} 35... Rxh8 {[%clk
0:00:01.6]} 36. Qf6+ {[%clk 0:01:13.7]} 36... Kd6 {[%clk 0:00:01.7]} 37. Rxh8
{[%clk 0:01:14.5]} 37... Rxc3 {[%clk 0:00:01.7]} 38. Rf8 {[%clk 0:01:12.4]}
38... Kc6 {[%clk 0:00:01.8]} 39. Rxf7 {[%clk 0:01:11.5]} 39... Qd6 {[%clk
0:00:02.6]} 40. Re7 {[%clk 0:01:11.8]} 1-0

[Event "Early-Titled-Tuesday-Blitz-January-16-2024"]
[Site "Chess.com"]
[Date "2024.01.16"]
[Round "11"]
[White "01Roman"]
[Black "SanchezKelvin"]
[Result "0-1"]
[WhiteElo "2470"]
[BlackElo "2578"]
[TimeControl "180+1"]
[EndTime "10:08:49 PST"]
[Termination "SanchezKelvin won by resignation"]

1. Nf3 {[%clk 0:03:00.9]} 1... d5 {[%clk 0:02:52.1]} 2. d4 {[%clk 0:03:00.7]}
2... Nf6 {[%clk 0:02:51.1]} 3. c4 {[%clk 0:03:01.6]} 3... c6 {[%clk 0:02:51]} 4.
Qc2 {[%clk 0:03:00.5]} 4... dxc4 {[%clk 0:02:49.7]} 5. e4 {[%clk 0:03:01]} 5...
b5 {[%clk 0:02:48.7]} 6. b3 {[%clk 0:03:00.9]} 6... cxb3 {[%clk 0:02:48.5]} 7.
axb3 {[%clk 0:02:59.4]} 7... Bb7 {[%clk 0:02:48.2]} 8. Bd3 {[%clk 0:02:40.2]}
8... a6 {[%clk 0:02:46.4]} 9. Bd2 {[%clk 0:02:40.6]} 9... e6 {[%clk 0:02:43.6]}
10. O-O {[%clk 0:02:40.9]} 10... Nbd7 {[%clk 0:02:42.8]} 11. Rc1 {[%clk
0:02:36.8]} 11... c5 {[%clk 0:02:39.3]} 12. d5 {[%clk 0:02:03.1]} 12... exd5
{[%clk 0:02:35.8]} 13. e5 {[%clk 0:02:03.3]} 13... Ne4 {[%clk 0:02:35.7]} 14.
Bf4 {[%clk 0:01:57.1]} 14... Be7 {[%clk 0:02:32.6]} 15. Nbd2 {[%clk 0:01:52.9]}
15... g5 {[%clk 0:02:25.5]} 16. Be3 {[%clk 0:01:46.1]} 16... g4 {[%clk
0:02:15.5]} 17. Ne1 {[%clk 0:01:45.7]} 17... Nxd2 {[%clk 0:02:05.9]} 18. Bxd2
{[%clk 0:01:46.6]} 18... Nxe5 {[%clk 0:02:05.4]} 19. Bh6 {[%clk 0:01:44.9]}
19... Qd6 {[%clk 0:01:55.2]} 20. Bg7 {[%clk 0:01:42.9]} 20... Rg8 {[%clk
0:01:54.8]} 21. Bxe5 {[%clk 0:01:39.4]} 21... Qxe5 {[%clk 0:01:54.9]} 22. Qd2
{[%clk 0:01:29.9]} 22... Bg5 {[%clk 0:01:48.1]} 23. Qa5 {[%clk 0:01:29.2]} 23...
Bxc1 {[%clk 0:01:46.4]} 24. Rxc1 {[%clk 0:01:30.1]} 24... Qd6 {[%clk 0:01:35.1]}
25. Nc2 {[%clk 0:01:26.2]} 25... Rg7 {[%clk 0:01:31.2]} 26. Ne3 {[%clk
0:01:25.1]} 26... Rg5 {[%clk 0:01:17.3]} 27. Nf5 {[%clk 0:01:05]} 27... Rxf5
{[%clk 0:01:08.8]} 28. Bxf5 {[%clk 0:01:05.9]} 28... Kf8 {[%clk 0:01:08.5]} 29.
Bxg4 {[%clk 0:00:57.1]} 29... Qf4 {[%clk 0:01:05.9]} 30. Rxc5 {[%clk 0:00:46.9]}
30... Qxg4 {[%clk 0:01:04.8]} 31. h3 {[%clk 0:00:43.5]} 31... Qf4 {[%clk
0:00:57.9]} 32. Rc7 {[%clk 0:00:34.7]} 32... Re8 {[%clk 0:00:55]} 33. Rxb7
{[%clk 0:00:30.9]} 33... Re2 {[%clk 0:00:50.7]} 34. Qb4+ {[%clk 0:00:04.8]}
34... Qxb4 {[%clk 0:00:50]} 0-1

[Event "Early-Titled-Tuesday-Blitz-January-16-2024"]
[Site "Chess.com"]
[Date "2024.01.16"]
[Round "11"]
[White "lilylg"]
[Black "FMCarmona"]
[Result "1-0"]
[WhiteElo "2132"]
[BlackElo "2166"]
[TimeControl "180+1"]
[EndTime "10:08:53 PST"]
[Termination "lilylg won on time"]

1. d4 {[%clk 0:03:00.9]} 1... d5 {[%clk 0:02:57.1]} 2. c4 {[%clk 0:03:00.7]}
2... e6 {[%clk 0:02:57.6]} 3. Nf3 {[%clk 0:03:00.4]} 3... Nf6 {[%clk 0:02:58.2]}
4. g3 {[%clk 0:03:00.5]} 4... Be7 {[%clk 0:02:58.8]} 5. Bg2 {[%clk 0:03:00.8]}
5... O-O {[%clk 0:02:59.5]} 6. O-O {[%clk 0:03:01]} 6... c6 {[%clk 0:03:00.3]}
7. Qc2 {[%clk 0:02:58.8]} 7... b6 {[%clk 0:02:58.4]} 8. Bf4 {[%clk 0:02:58.2]}
8... Bb7 {[%clk 0:02:56.1]} 9. Nbd2 {[%clk 0:02:58]} 9... Nbd7 {[%clk
0:02:56.3]} 10. Rac1 {[%clk 0:02:55.2]} 10... Rc8 {[%clk 0:02:55.8]} 11. Rfd1
{[%clk 0:02:40.5]} 11... c5 {[%clk 0:02:40.9]} 12. dxc5 {[%clk 0:02:33.5]} 12...
bxc5 {[%clk 0:02:32.6]} 13. Ne5 {[%clk 0:02:28.9]} 13... Nxe5 {[%clk 0:01:50.6]}
14. Bxe5 {[%clk 0:02:24.5]} 14... Qb6 {[%clk 0:01:47.5]} 15. cxd5 {[%clk
0:02:18.3]} 15... exd5 {[%clk 0:01:35.1]} 16. Qb3 {[%clk 0:01:57.6]} 16... Rfd8
{[%clk 0:01:14.9]} 17. Qxb6 {[%clk 0:01:47.2]} 17... axb6 {[%clk 0:01:14.9]} 18.
Rc2 {[%clk 0:01:47.1]} 18... Ba6 {[%clk 0:01:01.5]} 19. Nf3 {[%clk 0:01:04]}
19... Ne4 {[%clk 0:00:35.1]} 20. Bh3 {[%clk 0:01:01.4]} 20... Ra8 {[%clk
0:00:29.4]} 21. Bc7 {[%clk 0:00:33.6]} 21... Bb7 {[%clk 0:00:13.1]} 22. Bxd8
{[%clk 0:00:31.6]} 22... Bxd8 {[%clk 0:00:12.4]} 23. Nd2 {[%clk 0:00:30.7]}
23... Nf6 {[%clk 0:00:07.4]} 24. b3 {[%clk 0:00:26.9]} 24... Be7 {[%clk
0:00:06.7]} 25. Bg2 {[%clk 0:00:26.9]} 25... h6 {[%clk 0:00:05]} 26. Nc4 {[%clk
0:00:26.5]} 26... Ra6 {[%clk 0:00:03.4]} 27. Ne3 {[%clk 0:00:21.5]} 1-0

[Event "Early-Titled-Tuesday-Blitz-January-16-2024"]
[Site "Chess.com"]
[Date "2024.01.16"]
[Round "11"]
[White "ATM622"]
[Black "Pastore1978"]
[Result "1-0"]
[WhiteElo "2485"]
[BlackElo "2293"]
[TimeControl "180+1"]
[EndTime "10:08:54 PST"]
[Termination "ATM622 won by resignation"]

1. d4 {[%clk 0:03:00.9]} 1... d5 {[%clk 0:02:59.8]} 2. c4 {[%clk 0:03:01.3]}
2... e6 {[%clk 0:02:59.8]} 3. Nf3 {[%clk 0:03:00]} 3... Nf6 {[%clk 0:02:59.8]}
4. g3 {[%clk 0:02:59.3]} 4... Bb4+ {[%clk 0:02:59.8]} 5. Nbd2 {[%clk 0:02:59.2]}
5... dxc4 {[%clk 0:02:57.5]} 6. Bg2 {[%clk 0:02:56]} 6... O-O {[%clk 0:02:51]}
7. O-O {[%clk 0:02:55.7]} 7... b5 {[%clk 0:02:50.6]} 8. Ne1 {[%clk 0:02:51.4]}
8... Nd5 {[%clk 0:02:43.7]} 9. a4 {[%clk 0:02:49.2]} 9... c6 {[%clk 0:02:40.4]}
10. e4 {[%clk 0:02:46.7]} 10... Nf6 {[%clk 0:02:39.3]} 11. Nc2 {[%clk
0:02:44.5]} 11... Be7 {[%clk 0:02:31.5]} 12. e5 {[%clk 0:02:41.4]} 12... Nd5
{[%clk 0:02:31.2]} 13. Ne4 {[%clk 0:02:39.6]} 13... Nd7 {[%clk 0:02:23.9]} 14.
Ne3 {[%clk 0:02:35.6]} 14... Nxe3 {[%clk 0:02:16.5]} 15. Bxe3 {[%clk 0:02:33.3]}
15... Nb6 {[%clk 0:02:11.8]} 16. Qh5 {[%clk 0:02:30.3]} 16... Nd5 {[%clk
0:02:02.4]} 17. Bg5 {[%clk 0:02:26.4]} 17... h6 {[%clk 0:01:46.7]} 18. Bxh6
{[%clk 0:02:23.9]} 18... gxh6 {[%clk 0:01:47.6]} 19. Qxh6 {[%clk 0:02:23.9]}
19... f5 {[%clk 0:01:24.9]} 20. Qg6+ {[%clk 0:02:11.5]} 20... Kh8 {[%clk
0:01:24.8]} 21. axb5 {[%clk 0:02:08.1]} 21... cxb5 {[%clk 0:01:10.1]} 22. h4
{[%clk 0:02:07.9]} 22... Bd7 {[%clk 0:00:58.9]} 23. Ng5 {[%clk 0:02:04]} 23...
Bxg5 {[%clk 0:00:58.3]} 24. hxg5 {[%clk 0:02:03.9]} 24... Qe7 {[%clk 0:00:52.5]}
25. Bxd5 {[%clk 0:01:59.5]} 25... exd5 {[%clk 0:00:53.4]} 26. Kg2 {[%clk
0:01:59.9]} 26... Qg7 {[%clk 0:00:48.9]} 27. Qh5+ {[%clk 0:01:43.3]} 27... Kg8
{[%clk 0:00:47.3]} 28. Ra6 {[%clk 0:01:43.5]} 28... Be8 {[%clk 0:00:42.3]} 29.
g6 {[%clk 0:01:43.6]} 29... Rb8 {[%clk 0:00:31.6]} 30. Rh1 {[%clk 0:01:42.2]}
30... Rb7 {[%clk 0:00:21.7]} 31. Qf3 {[%clk 0:01:19.5]} 31... Rd7 {[%clk
0:00:14.8]} 32. Rh7 {[%clk 0:01:17.7]} 32... Bxg6 {[%clk 0:00:08.9]} 33. Rxg7+
{[%clk 0:01:16.5]} 33... Kxg7 {[%clk 0:00:09.8]} 34. e6 {[%clk 0:01:14.5]} 34...
Re7 {[%clk 0:00:06.8]} 35. Qf4 {[%clk 0:01:11.9]} 35... b4 {[%clk 0:00:05.3]}
36. Qe5+ {[%clk 0:01:08.6]} 36... Kg8 {[%clk 0:00:04.7]} 37. Qxd5 {[%clk
0:01:06.2]} 37... f4 {[%clk 0:00:05]} 38. Qxc4 {[%clk 0:01:02.4]} 38... Be4+
{[%clk 0:00:04.6]} 39. f3 {[%clk 0:01:01.3]} 39... fxg3 {[%clk 0:00:02.4]} 40.
fxe4 {[%clk 0:01:00.1]} 40... Rh7 {[%clk 0:00:03]} 41. e7+ {[%clk 0:00:59]} 1-0

[Event "Early-Titled-Tuesday-Blitz-January-16-2024"]
[Site "Chess.com"]
[Date "2024.01.16"]
[Round "11"]
[White "AlexPapasimakopoulos"]
[Black "WhiteKnight2612"]
[Result "0-1"]
[WhiteElo "2666"]
[BlackElo "2870"]
[TimeControl "180+1"]
[EndTime "10:08:55 PST"]
[Termination "WhiteKnight2612 won by checkmate"]

1. Nf3 {[%clk 0:03:00.9]} 1... Nf6 {[%clk 0:02:57.8]} 2. g3 {[%clk 0:03:01.2]}
2... b6 {[%clk 0:02:57]} 3. Bg2 {[%clk 0:03:01.1]} 3... Bb7 {[%clk 0:02:54.7]}
4. b3 {[%clk 0:03:01.6]} 4... g6 {[%clk 0:02:54.4]} 5. Bb2 {[%clk 0:03:01.8]}
5... Bg7 {[%clk 0:02:55.1]} 6. c4 {[%clk 0:03:02.5]} 6... O-O {[%clk 0:02:55.6]}
7. O-O {[%clk 0:03:03.2]} 7... d6 {[%clk 0:02:55.5]} 8. Nc3 {[%clk 0:03:03.7]}
8... Nbd7 {[%clk 0:02:56]} 9. d4 {[%clk 0:03:04.1]} 9... e5 {[%clk 0:02:55.1]}
10. dxe5 {[%clk 0:03:02.4]} 10... dxe5 {[%clk 0:02:53]} 11. Ng5 {[%clk
0:02:58.9]} 11... Bxg2 {[%clk 0:02:51.6]} 12. Kxg2 {[%clk 0:02:59.8]} 12... h6
{[%clk 0:02:38.2]} 13. Nge4 {[%clk 0:02:58.2]} 13... Nxe4 {[%clk 0:02:38.7]} 14.
Nxe4 {[%clk 0:02:59.1]} 14... f5 {[%clk 0:02:38.5]} 15. Qd5+ {[%clk 0:02:58.6]}
15... Rf7 {[%clk 0:02:37.1]} 16. Nc3 {[%clk 0:02:56.3]} 16... e4 {[%clk
0:02:32.8]} 17. Rad1 {[%clk 0:02:54.1]} 17... Qe8 {[%clk 0:02:32.6]} 18. Nb5
{[%clk 0:02:50]} 18... Rc8 {[%clk 0:02:06.9]} 19. Bxg7 {[%clk 0:02:48.6]} 19...
Kxg7 {[%clk 0:02:05.1]} 20. Nxa7 {[%clk 0:02:41.6]} 20... Ra8 {[%clk 0:02:05]}
21. Nb5 {[%clk 0:02:35.6]} 21... Ne5 {[%clk 0:01:57.7]} 22. Qd2 {[%clk
0:02:26.1]} 22... Qe6 {[%clk 0:01:37.6]} 23. a4 {[%clk 0:02:20.2]} 23... f4
{[%clk 0:01:35.9]} 24. gxf4 {[%clk 0:02:17.9]} 24... Qg4+ {[%clk 0:01:29.2]} 25.
Kh1 {[%clk 0:02:18]} 25... Rxf4 {[%clk 0:01:29.8]} 26. Rg1 {[%clk 0:02:12.3]}
26... Qh4 {[%clk 0:01:11.6]} 27. Rg2 {[%clk 0:02:12.4]} 27... Kh7 {[%clk
0:01:05.5]} 28. Kg1 {[%clk 0:02:02.3]} 28... Raf8 {[%clk 0:01:03.4]} 29. Rf1
{[%clk 0:01:58.8]} 29... Ng4 {[%clk 0:00:58.5]} 30. Qe1 {[%clk 0:01:46.5]} 30...
Qh3 {[%clk 0:00:46.6]} 31. Nxc7 {[%clk 0:01:39]} 31... R4f5 {[%clk 0:00:41.8]}
32. Ne6 {[%clk 0:01:18.2]} 32... R8f6 {[%clk 0:00:40.6]} 33. Nd4 {[%clk
0:01:09.2]} 33... Rg5 {[%clk 0:00:39.8]} 34. f4 {[%clk 0:01:07.5]} 34... Nxh2
{[%clk 0:00:29.7]} 35. Rf2 {[%clk 0:00:53.4]} 35... e3 {[%clk 0:00:23.3]} 36.
fxg5 {[%clk 0:00:43.3]} 36... exf2+ {[%clk 0:00:20.2]} 37. Rxf2 {[%clk 0:00:42]}
37... Ng4 {[%clk 0:00:20.8]} 38. gxf6 {[%clk 0:00:37.9]} 38... Qg3+ {[%clk
0:00:21]} 39. Kf1 {[%clk 0:00:35.4]} 39... Ne3# {[%clk 0:00:20.7]} 0-1